bitfinex-derivatives/quotes_ETHF0:USTF0_20241004
["timestamp","ask_amount","ask_price","bid_price","bid_amount"]
[1728033526683,0.41903,2386.6,2386.4,0.83435]
[1728033526883,0.41903,2386.6,2386.5,0.41904]
[1728033527382,0.41903,2386.6,2386.3,0.41907]
[1728033527383,1.04756,2386.6,2386.3,0.41907]
[1728033527591,0.82075,2386.5,2386.3,0.41907]
[1728033527783,0.41906,2386.4,2386.3,0.41907]
[1728033528188,0.41903,2386.6,2386.2,0.801]
[1728033528395,0.41903,2386.6,2386.5,0.41904]
[1728033528688,6.8839,2386.7,2386.2,0.801]
[1728033528689,7.3106,2386.7,2386.2,0.801]
[1728033528991,0.41902,2386.6,2386.4,0.41905]
[1728033529390,7.3106,2386.7,2386.2,0.801]
[1728033529589,0.41904,2386.6,2386.4,0.41905]
[1728033530492,3.6171,2386.8,2386.4,3.27]
[1728033530688,3.6171,2386.8,2386.5,0.3929]
[1728033530883,3.6171,2386.8,2386.2,0.4021]
[1728033531088,0.41905,2386.5,2386.4,0.41905]
[1728033531296,0.8195,2386.7,2386.3,0.4253]
[1728033531603,0.8195,2386.7,2386.2,0.795]
[1728033531604,0.41907,2386.3,2386.2,0.4021]
[1728033531894,0.41907,2386.3,2386.2,0.82119]
[1728033532684,0.41907,2386.3,2386.2,0.4021]
[1728033532896,0.4191,2386.2,2386.0,1.2159]
[1728033533097,0.4191,2386.2,2386.1,0.41911]
[1728033533398,0.81419,2386.3,2386.1,0.41911]
[1728033533597,0.81419,2386.3,2386.1,0.4191]
[1728033533990,0.81419,2386.3,2386.0,1.2159]
[1728033534198,0.4191,2386.2,2386.0,1.63501]
[1728033534398,0.4191,2386.2,2386.1,0.41911]
[1728033535202,0.7845,2386.3,2386.0,1.63502]
[1728033535406,0.7845,2386.3,2386.0,1.2159]
[1728033535611,0.41911,2386.2,2386.0,1.63502]
[1728033536106,0.7845,2386.3,2386.1,0.41911]
[1728033536309,1.20358,2386.3,2386.1,0.41911]
[1728033536706,1.20358,2386.3,2386.2,0.41909]
[1728033537105,3.2078,2386.5,2386.4,0.41906]
[1728033537312,1.04749,2386.8,2386.6,0.41901]
[1728033537313,3.2078,2386.8,2386.6,0.41901]
[1728033537804,3.6268,2386.8,2386.7,0.3899]
[1728033538207,0.41902,2386.6,2386.5,0.41903]
[1728033538399,0.41902,2386.6,2386.5,0.80893]
[1728033538998,0.41902,2386.6,2386.2,1.14572]
[1728033538999,7.4604,2386.6,2386.2,0.098]
[1728033539212,0.41907,2386.3,2386.2,0.3899]
[1728033541005,0.41907,2386.3,2386.1,0.4077]
[1728033541006,0.41909,2386.2,2386.1,0.4077]
[1728033541207,1.27029,2386.2,2386.1,0.4077]
[1728033541607,0.8512,2386.2,2386.0,0.4076]
[1728033541806,0.41915,2385.9,2385.8,0.8343]
[1728033542114,0.41915,2385.9,2385.8,0.4076]
[1728033542711,0.41916,2385.8,2385.5,0.41921]
[1728033543012,0.41922,2385.5,2385.4,1.90750378]
[1728033543208,7.81902,2385.5,2385.4,1.09720378]
[1728033543411,17.08902,2385.5,2385.4,1.09720378]
[1728033545210,16.6698,2385.5,2384.9,0.098]
[1728033545409,0.41934,2384.8,2384.7,0.5007]
[1728033545613,0.41936,2384.7,2384.6,3.83663048]
[1728033545815,0.41936,2384.7,2384.2,3.3058]
[1728033545816,0.41943,2384.3,2384.2,0.098]
[1728033546013,0.41944,2384.2,2384.1,8.12498106]
[1728033548011,3.27,2384.3,2384.1,8.12498106]
[1728033548214,3.6279,2384.4,2384.1,8.12498106]
[1728033548717,3.2078,2384.7,2384.2,0.41944]
[1728033548915,3.2078,2384.7,2384.3,0.41941]
[1728033549110,3.2078,2384.7,2384.2,4.0111]
[1728033549310,3.2078,2384.7,2384.4,0.4194]
[1728033549723,3.2078,2384.7,2384.2,4.0733]
[1728033549918,3.2078,2384.7,2384.6,0.41937]
[1728033550119,0.41926,2385.3,2384.9,0.41932]
[1728033550120,3.2078,2385.3,2384.9,0.41932]
[1728033550310,3.2078,2385.3,2384.9,3.27]
[1728033550512,3.27,2385.6,2384.9,3.27]
[1728033550818,3.6208,2385.7,2385.0,6.8672]
[1728033551114,3.6208,2385.7,2385.2,3.27]
[1728033551115,3.2078,2385.7,2385.2,3.27]
[1728033551319,3.2078,2385.7,2385.4,0.41923]
[1728033551913,3.2078,2385.7,2385.6,0.4192]
[1728033553820,3.2078,2385.7,2385.5,0.4192]
[1728033555020,3.2078,2385.7,2385.4,0.82272]
[1728033555414,3.2078,2385.7,2385.5,0.41921]
[1728033555728,3.2078,2385.7,2385.4,0.4035]
[1728033555924,3.2078,2385.7,2385.4,0.82273]
[1728033556217,3.62699,2385.7,2385.4,0.4035]
[1728033556417,3.2078,2385.7,2385.4,0.4035]
[1728033556721,3.62698,2385.7,2385.4,0.82273]
[1728033557419,3.2078,2385.7,2385.4,0.82273]
[1728033557617,3.2078,2385.7,2385.4,0.4035]
[1728033557820,3.62699,2385.7,2385.4,0.4035]
[1728033558418,3.62699,2385.7,2385.4,0.82273]
[1728033558616,0.41919,2385.7,2385.4,0.82273]
[1728033558816,6.4778,2385.8,2385.4,0.82273]
[1728033559018,6.89697,2385.8,2385.4,0.82273]
[1728033560727,6.4778,2385.8,2385.4,0.82273]
[1728033560926,6.89697,2385.8,2385.4,0.82273]
[1728033561428,3.68917,2385.8,2385.4,0.82273]
[1728033561623,6.89697,2385.8,2385.4,0.82273]
[1728033562925,3.68917,2385.8,2385.4,0.82273]
[1728033563119,6.89697,2385.8,2385.4,0.82273]
[1728033565124,3.68917,2385.8,2385.4,0.82273]
[1728033565424,3.2078,2385.7,2385.4,0.82273]
[1728033566126,3.2078,2385.7,2385.4,0.4035]
[1728033566325,3.2078,2385.7,2385.5,0.41921]
[1728033568025,3.68917,2385.8,2385.5,0.41921]
[1728033568226,3.2078,2385.7,2385.5,0.41921]
[1728033570525,3.68916,2385.8,2385.5,0.41921]
[1728033570731,3.2078,2385.7,2385.5,0.41921]
[1728033571130,3.2078,2385.7,2385.6,0.4192]
[1728033572326,3.2078,2386.0,2385.6,4.192]
[1728033572530,3.2078,2386.0,2385.9,0.41915]
[1728033573031,0.41911,2386.2,2385.9,0.41915]
[1728033573227,7.95206,2386.4,2386.0,0.4221]
[1728033573431,4.05346,2386.4,2386.0,0.4221]
[1728033573634,3.6344,2386.4,2386.0,0.4221]
[1728033573926,4.05347,2386.4,2386.1,0.41911]
[1728033576030,3.2078,2386.4,2386.2,0.41909]
[1728033576230,3.2078,2386.4,2386.3,0.41907]
[1728033576732,4.04349,2386.8,2386.5,0.41903]
[1728033576934,3.6245,2386.8,2386.7,0.419]
[1728033577124,3.2078,2386.8,2386.4,0.8355]
[1728033577925,3.2078,2386.8,2386.7,0.419]
[1728033578730,3.2078,2386.8,2386.6,0.41901]
[1728033579029,3.62679,2386.8,2386.5,0.41903]
[1728033579233,3.2078,2386.8,2386.6,0.41902]
[1728033580032,0.41898,2386.9,2386.6,0.41902]
[1728033580225,3.2078,2386.8,2386.4,0.8355]
[1728033580426,3.62679,2386.8,2386.5,0.41903]
[1728033580621,3.2078,2386.8,2386.2,6.4778]
[1728033580929,0.41903,2386.6,2386.3,0.41907]
[1728033581130,0.41901,2386.7,2386.3,0.41907]
[1728033581327,0.41901,2386.7,2386.4,0.41906]
[1728033581631,6.4778,2386.8,2386.2,0.41909]
[1728033581632,0.41904,2386.5,2386.2,0.41909]
[1728033581834,0.80843,2386.6,2386.2,0.41908]
[1728033582024,0.3894,2386.6,2386.3,0.41907]
[1728033582221,0.80842,2386.6,2386.1,0.8334]
[1728033582428,0.80842,2386.6,2386.2,0.41908]
[1728033582631,0.3894,2386.6,2386.3,0.41907]
[1728033582830,0.80843,2386.6,2386.3,0.41907]
[1728033583636,0.41905,2386.5,2386.2,0.41909]
[1728033586335,0.3894,2386.6,2386.2,0.41908]
[1728033586536,0.41906,2386.4,2386.1,1.25249]
[1728033586734,0.3894,2386.6,2386.1,0.8334]
[1728033586936,0.41904,2386.5,2386.3,0.41907]
[1728033587233,0.41904,2386.5,2386.1,0.8334]
[1728033587234,0.3894,2386.6,2386.1,0.8334]
[1728033587433,0.41908,2386.3,2386.1,0.8334]
[1728033587636,0.41909,2386.2,2386.1,0.8334]
[1728033587937,7.52541,2386.5,2386.1,0.424]
[1728033587938,0.41909,2386.3,2386.1,0.424]
[1728033588132,0.41909,2386.2,2386.1,0.424]
[1728033588330,6.4778,2386.5,2386.0,0.4221]
[1728033588632,0.4191,2386.2,2386.0,0.4221]
[1728033588832,3.68906,2386.4,2386.0,0.4221]
[1728033589140,0.41911,2386.1,2385.8,3.2078]
[1728033589331,3.2078,2386.1,2385.7,1.25]
[1728033589533,0.41915,2385.9,2385.7,1.25]
[1728033589841,0.41916,2385.9,2385.7,0.8257]
[1728033590038,0.4056,2386.0,2385.7,0.4181]
[1728033590235,0.82474,2386.0,2385.7,0.4181]
[1728033590539,0.4056,2386.0,2385.7,0.4181]
[1728033590745,0.82474,2386.0,2385.7,0.4181]
[1728033592031,0.4056,2386.0,2385.7,0.83727]
[1728033592231,0.82473,2386.0,2385.7,0.83727]
[1728033592438,0.4056,2386.0,2385.8,0.41915]
[1728033592741,0.4056,2386.0,2385.8,0.81685]
[1728033593139,0.4056,2386.0,2385.8,0.3977]
[1728033593637,1.08758,2386.6,2385.8,0.3977]
[1728033593638,0.83636,2386.5,2385.8,3.6677]
[1728033594039,0.83636,2386.5,2386.1,0.4191]
[1728033594236,0.83636,2386.5,2386.2,0.4224]
[1728033594438,0.4173,2386.5,2386.2,0.4224]
[1728033594735,0.4173,2386.5,2386.3,0.41907]
[1728033594937,0.4173,2386.5,2386.2,0.4224]
[1728033595134,3.6873,2386.5,2386.2,0.4224]
[1728033595336,0.41907,2386.3,2386.2,0.4224]
[1728033595537,0.41907,2386.4,2386.2,0.4224]
[1728033595735,3.6873,2386.5,2386.2,0.4224]
[1728033596035,0.41906,2386.4,2386.2,0.4224]
[1728033596241,0.83635,2386.5,2386.2,0.4224]
[1728033596637,4.04415,2386.5,2386.2,0.4224]
[1728033596839,3.6251,2386.5,2386.2,0.4224]
[1728033597029,0.83635,2386.5,2386.2,0.4224]
[1728033597233,4.04415,2386.5,2386.2,0.4224]
[1728033597949,3.6251,2386.5,2386.3,0.41907]
[1728033599443,0.4173,2386.5,2386.3,0.41907]
[1728033600849,0.4173,2386.5,2386.2,0.8211]
[1728033601041,0.4173,2386.5,2386.3,0.41907]
[1728033601744,0.83634,2386.5,2386.2,1.24018]
[1728033602150,0.83634,2386.5,2386.2,0.84149]
[1728033602343,0.4173,2386.5,2386.2,0.84149]
[1728033602538,0.41906,2386.4,2386.2,0.4224]
[1728033602846,3.2078,2386.3,2385.9,0.4103]
[1728033603043,6.4778,2386.3,2385.9,0.4035]
[1728033603339,6.89694,2386.0,2385.7,0.41917]
[1728033603541,6.89694,2386.0,2385.7,0.82957]
[1728033604747,0.41915,2385.9,2385.7,0.4104]
[1728033605249,6.89694,2386.0,2385.7,0.82958]
[1728033605449,6.4778,2386.0,2385.7,0.4104]
[1728033605947,0.41916,2385.8,2385.7,0.4104]
[1728033606156,7.4612,2385.9,2385.3,0.5053]
[1728033606445,7.4612,2385.9,2385.2,4.95762475]
[1728033606446,0.41923,2385.4,2385.2,5.25502475]
[1728033607041,0.41923,2385.4,2385.2,3.6182]
[1728033607848,3.2078,2385.4,2385.2,0.4104]
[1728033608045,3.2078,2385.4,2384.7,0.098]
[1728033608244,0.41931,2385.0,2384.8,0.393]
[1728033608446,3.68931,2385.0,2384.8,0.393]
[1728033609250,3.6893,2385.0,2384.8,0.393]
[1728033609547,3.27,2385.0,2384.8,0.393]
[1728033610347,3.27,2385.0,2384.8,0.81234]
[1728033610545,3.27,2385.0,2384.8,0.393]
[1728033611157,3.27,2385.0,2384.8,0.81233]
[1728033611448,3.6271,2385.1,2384.9,0.41931]
[1728033611449,3.2078,2385.1,2384.9,0.41931]
[1728033611648,3.62704,2385.4,2384.8,3.663]
[1728033611849,3.2078,2385.4,2385.3,0.41925]
[1728033613550,3.62699,2385.7,2385.4,0.41923]
[1728033613854,3.2078,2385.7,2385.1,0.8228]
[1728033614057,0.41922,2385.5,2385.1,0.8228]
[1728033614254,3.2078,2385.7,2385.1,0.8228]
[1728033614255,3.2078,2385.7,2385.2,0.41926]
[1728033614555,0.4192,2385.6,2385.1,0.8228]
[1728033614851,3.2078,2385.7,2385.2,0.41927]
[1728033615057,3.62699,2385.7,2385.4,0.41922]
[1728033615348,3.62699,2385.7,2385.5,0.4129]
[1728033615953,0.4192,2385.6,2385.5,0.4129]
[1728033616152,0.4192,2385.6,2385.2,0.41926]
[1728033616153,0.41922,2385.5,2385.2,0.41926]
[1728033616354,0.41924,2385.4,2385.1,1.65338]
[1728033616558,3.2078,2385.4,2385.2,0.41927]
[1728033617353,3.2078,2385.4,2385.1,1.65338]
[1728033617752,3.62703,2385.4,2385.1,1.65338]
[1728033617956,3.2078,2385.4,2385.1,1.65338]
[1728033618152,3.2078,2385.4,2385.1,1.2341]
[1728033618457,3.2078,2385.4,2385.2,0.41926]
[1728033618650,3.2078,2385.4,2385.1,1.2341]
[1728033618850,3.2078,2385.4,2385.1,1.65338]
[1728033619250,3.2078,2385.4,2385.2,0.41926]
[1728033619550,3.2078,2385.4,2385.2,0.41927]
[1728033620952,0.41922,2385.5,2385.2,0.41927]
[1728033622355,3.27,2385.6,2385.1,1.2341]
[1728033622559,0.41923,2385.5,2385.2,0.41926]
[1728033623056,3.2078,2385.4,2385.2,0.41926]
[1728033624460,3.2078,2385.4,2385.3,0.41925]
[1728033624759,3.2078,2385.4,2385.2,0.41926]
[1728033626157,3.2078,2385.4,2385.1,1.2341]
[1728033626459,3.2078,2385.4,2385.3,0.41925]
[1728033627155,3.2078,2385.4,2385.1,1.2341]
[1728033627356,3.2078,2385.4,2385.2,0.41926]
[1728033627551,3.2078,2385.4,2385.2,0.41927]
[1728033628269,3.2078,2385.4,2385.3,0.41925]
[1728033628764,3.2078,2385.4,2385.1,1.2341]
[1728033629061,3.2078,2385.4,2385.2,0.41926]
[1728033630853,3.62704,2385.4,2385.1,1.2341]
[1728033631053,3.62704,2385.4,2385.2,0.41927]
[1728033631460,0.41925,2385.3,2385.1,1.2341]
[1728033631854,0.41927,2385.2,2385.1,0.8087]
[1728033632053,0.41927,2385.2,2384.8,3.62713]
[1728033632054,0.41931,2385.0,2384.8,3.2078]
[1728033632254,0.41932,2384.9,2384.8,0.4024]
[1728033632665,3.68931,2385.0,2384.8,0.4024]
[1728033632865,0.41932,2384.9,2384.8,0.4024]
[1728033633159,7.4628,2384.9,2384.3,0.098]
[1728033633354,3.68938,2384.6,2384.4,0.4024]
[1728033635256,0.41938,2384.6,2384.4,0.4024]
[1728033636766,0.41938,2384.6,2384.2,0.41943]
[1728033637067,0.41939,2384.6,2384.3,0.4255]
[1728033637361,0.41939,2384.6,2384.3,0.84492]
[1728033637766,3.2078,2384.7,2384.3,0.84492]
[1728033637965,0.41938,2384.6,2384.3,0.4255]
[1728033638166,3.2078,2384.7,2384.3,0.4255]
[1728033638363,0.41938,2384.6,2384.3,0.4255]
[1728033639568,3.599,2384.7,2384.3,0.4255]
[1728033639865,0.41939,2384.5,2384.3,0.4255]
[1728033640065,4.01836,2384.7,2384.4,0.4194]
[1728033640268,4.01836,2384.7,2384.5,0.4198]
[1728033641562,3.599,2384.7,2384.5,0.4198]
[1728033641762,3.2078,2384.7,2384.5,0.4198]
[1728033641965,3.62716,2384.7,2384.5,0.4198]
[1728033642262,3.2078,2384.7,2384.5,0.4198]
[1728033642858,3.2078,2384.7,2384.5,0.83918]
[1728033643162,3.6223,2385.0,2384.5,4.6134]
[1728033643367,0.41934,2384.8,2384.5,0.83918]
[1728033644270,6.4778,2385.0,2384.5,0.83918]
[1728033644468,0.41933,2384.9,2384.5,0.83918]
[1728033645167,6.89712,2385.0,2384.6,0.41937]
[1728033645673,6.4778,2385.0,2384.5,0.4198]
[1728033645971,0.41933,2384.9,2384.5,0.83919]
[1728033646563,0.41933,2384.9,2384.6,0.41937]
[1728033646870,0.41933,2384.9,2384.7,0.4124]
[1728033647067,0.41933,2384.9,2384.8,0.4264]
[1728033647274,6.89712,2385.0,2384.8,0.4264]
[1728033648267,0.41932,2384.9,2384.8,0.4264]
[1728033648469,6.4778,2385.0,2384.8,0.4264]
[1728033649772,6.89712,2385.0,2384.8,0.4264]
[1728033649972,0.41932,2384.9,2384.8,0.4264]
[1728033650778,6.89711,2385.0,2384.8,0.4264]
[1728033651575,6.4778,2385.0,2384.8,0.4264]
[1728033652076,6.89711,2385.0,2384.8,0.4264]
[1728033654089,6.4778,2385.0,2384.8,0.4264]
[1728033654383,6.89712,2385.0,2384.8,0.4264]
[1728033657284,6.89711,2385.0,2384.8,0.4264]
[1728033659287,6.4778,2385.0,2384.8,0.4264]
[1728033659480,6.4778,2385.0,2384.7,0.4124]
[1728033659681,0.41932,2384.9,2384.7,0.4124]
[1728033659884,6.4778,2385.0,2384.7,0.4124]
[1728033660086,0.41934,2384.8,2384.7,0.4124]
[1728033662082,0.41933,2384.9,2384.7,0.4124]
[1728033662384,0.41934,2384.8,2384.7,0.4124]
[1728033662781,0.41934,2384.9,2384.7,0.4124]
[1728033663087,0.41934,2384.8,2384.7,0.4124]
[1728033664680,0.41933,2384.9,2384.7,0.83175]
[1728033665492,0.41933,2384.9,2384.7,0.4124]
[1728033665987,7.93738,2385.0,2384.7,0.4124]
[1728033666182,0.41932,2384.9,2384.7,0.4124]
[1728033666490,0.41934,2384.8,2384.7,0.4124]
[1728033667089,6.89711,2385.0,2384.8,0.41933]
[1728033667287,6.89711,2385.0,2384.9,0.3984]
[1728033668088,0.41934,2384.8,2384.7,0.4124]
[1728033668982,4.07694,2384.8,2384.4,0.3909]
[1728033669291,3.62716,2384.7,2384.4,0.8486]
[1728033669485,3.62716,2384.7,2384.5,0.3909]
[1728033669688,5.13716,2384.7,2384.5,0.3909]
[1728033670187,5.13716,2384.7,2384.5,0.81029]
[1728033670188,4.7178,2384.7,2384.5,0.81029]
[1728033670490,5.13716,2384.7,2384.5,0.3909]
[1728033671486,0.41937,2384.6,2384.5,0.3909]
[1728033671686,4.25621,2384.7,2384.3,0.4006]
[1728033671983,0.41944,2384.2,2384.1,0.8216]
[1728033672378,0.83964,2384.3,2384.1,0.8216]
[1728033672782,0.4202,2384.3,2384.1,0.8216]
[1728033672990,0.83963,2384.3,2384.1,0.8216]
[1728033674087,0.4202,2384.3,2384.1,0.8216]
[1728033674290,0.41944,2384.2,2384.1,0.8216]
[1728033674791,0.83964,2384.3,2384.1,0.8216]
[1728033675193,3.2078,2384.2,2384.1,0.8216]
[1728033677492,0.41938,2384.6,2384.3,0.41942]
[1728033678095,3.2078,2384.7,2384.4,0.4042]
[1728033678287,3.2078,2384.7,2384.6,0.41937]
[1728033678692,3.2078,2384.7,2384.4,0.4042]
[1728033678895,3.2078,2384.7,2384.5,0.41938]
[1728033679093,3.2078,2384.7,2384.6,0.8073]
[1728033679296,3.2078,2384.7,2384.6,5.42027]
[1728033679698,3.62716,2384.7,2384.6,0.8073]
[1728033679893,3.2078,2384.7,2384.4,0.4042]
[1728033680202,0.41939,2384.6,2384.5,0.8396]
[1728033682100,3.2078,2384.7,2384.5,1.25899]
[1728033682302,3.2078,2384.7,2384.6,0.41937]
[1728033682503,3.2078,2384.7,2384.5,0.8396]
[1728033682705,3.2078,2384.7,2384.6,0.41937]
[1728033684606,3.2078,2384.7,2384.5,1.25898]
[1728033686102,0.41937,2384.6,2384.5,0.8396]
[1728033686303,3.68937,2384.6,2384.5,0.8396]
[1728033687107,4.03327,2384.7,2384.5,0.8396]
[1728033687401,3.2078,2384.7,2384.6,0.41937]
[1728033688108,0.41933,2384.9,2384.6,0.41937]
[1728033688408,0.41932,2384.9,2384.5,1.25899]
[1728033688607,3.27,2384.9,2384.5,0.8396]
[1728033688811,0.41937,2384.6,2384.5,0.8396]
[1728033689310,0.82547,2384.6,2384.5,0.8396]
[1728033689897,6.89717,2384.7,2384.5,0.8396]
[1728033690106,3.2078,2384.7,2384.5,0.8396]
[1728033690312,3.62716,2384.7,2384.5,0.8396]
[1728033691507,3.2078,2384.7,2384.5,0.8396]
[1728033691704,3.2078,2384.7,2384.5,1.25899]
[1728033691911,3.2078,2384.7,2384.5,0.8396]
[1728033692212,3.2078,2384.7,2384.5,1.25898]
[1728033692608,3.62716,2384.7,2384.5,0.8396]
[1728033693008,3.62717,2384.7,2384.5,0.8396]
[1728033693210,0.41937,2384.6,2384.5,0.8396]
[1728033693407,6.4778,2384.7,2384.5,0.8396]
[1728033693911,0.41937,2384.6,2384.5,0.8396]
[1728033694415,3.2078,2384.7,2384.5,0.8396]
[1728033694912,3.62717,2384.7,2384.5,0.8396]
[1728033695101,0.41937,2384.6,2384.5,0.4207]
[1728033695299,0.41937,2384.6,2384.2,0.41944]
[1728033695505,0.4086,2384.5,2384.3,0.4069]
[1728033697005,6.4778,2384.7,2384.3,0.4069]
[1728033697212,0.41938,2384.6,2384.3,0.4069]
[1728033697414,0.41938,2384.6,2384.3,0.82632]
[1728033698009,6.4778,2384.7,2384.3,0.82632]
[1728033698213,3.62716,2384.7,2384.3,0.82632]
[1728033698510,3.2078,2384.7,2384.4,0.4194]
[1728033698908,3.2078,2384.7,2384.5,0.3907]
[1728033699215,3.2078,2384.7,2384.6,0.4021]
[1728033699708,3.62716,2384.7,2384.6,0.4021]
[1728033700413,3.2078,2384.7,2384.5,0.3907]
[1728033700612,0.41939,2384.6,2384.3,0.4069]
[1728033700914,3.2078,2384.7,2384.3,0.4069]
[1728033700915,6.4778,2384.7,2384.3,0.4069]
[1728033701112,0.41941,2384.4,2384.3,0.4069]
[1728033701313,0.415,2384.5,2384.3,0.4069]
[1728033701518,0.41941,2384.4,2384.3,0.4069]
[1728033702219,0.83441,2384.5,2384.3,0.4069]
[1728033702926,4.04221,2384.5,2384.3,0.4069]
[1728033703216,0.41941,2384.4,2384.3,0.4069]
[1728033705123,3.6228,2384.5,2384.2,0.4216]
[1728033705420,0.41943,2384.3,2384.0,1.22268]
[1728033705617,7.2178,2384.5,2384.0,1.63707]
[1728033705824,0.41943,2384.3,2384.0,1.63707]
[1728033707324,0.41945,2384.2,2384.0,1.2176]
[1728033707822,0.41946,2384.1,2384.0,1.2176]
[1728033708026,0.41945,2384.2,2384.0,1.2176]
[1728033712926,6.89723,2384.3,2384.0,1.63708]
[1728033713324,6.89723,2384.3,2384.0,1.2176]
[1728033714037,0.41945,2384.2,2384.0,1.2176]
[1728033715733,4.7178,2384.3,2384.0,1.2176]
[1728033715934,5.13723,2384.3,2384.0,1.63707]
[1728033716723,3.2078,2384.3,2384.0,3.14707]
[1728033716921,3.62723,2384.3,2384.0,3.14707]
[1728033717132,3.62723,2384.3,2384.0,3.14708]
[1728033718033,3.2078,2384.3,2384.0,2.7276]
[1728033718332,3.62723,2384.3,2384.0,3.14707]
[1728033719727,3.2078,2384.3,2384.1,0.41946]
[1728033720231,3.62723,2384.3,2384.0,2.7276]
[1728033720531,3.2078,2384.3,2384.1,0.41946]
[1728033720924,3.62723,2384.3,2384.1,0.41946]
[1728033722040,0.41945,2384.2,2384.0,3.14707]
[1728033722331,3.2078,2384.3,2384.1,0.41946]
[1728033722630,3.62723,2384.3,2384.1,0.41946]
[1728033722824,3.2078,2384.3,2384.0,2.7276]
[1728033723026,0.4194,2384.5,2384.2,1.51]
[1728033723219,0.41934,2384.8,2384.5,0.41939]
[1728033723423,0.41936,2384.7,2384.6,2.754]
[1728033723819,0.41936,2384.7,2384.6,1.244]
[1728033724428,1.92936,2384.7,2384.6,0.8282]
[1728033724729,1.92936,2384.7,2384.1,0.098]
[1728033724730,6.12296,2384.7,2384.1,0.51745]
[1728033724938,4.7178,2384.4,2384.2,0.8289]
[1728033725227,0.41943,2384.3,2384.2,0.8289]
[1728033725432,4.7178,2384.4,2384.2,0.8289]
[1728033725628,5.13722,2384.4,2384.2,0.8289]
[1728033726432,3.2078,2384.4,2384.2,0.8289]
[1728033726632,3.62721,2384.4,2384.2,0.8289]
[1728033730130,3.2078,2384.3,2384.2,0.8289]
[1728033730837,3.62723,2384.3,2384.2,0.8289]
[1728033731033,3.2078,2384.3,2384.2,0.8289]
[1728033733639,3.62723,2384.3,2384.2,0.8289]
[1728033737042,0.41943,2384.3,2384.2,0.8289]
[1728033737238,3.62723,2384.3,2384.2,0.8289]
[1728033740141,3.2078,2384.3,2383.9,0.41948]
[1728033740348,4.7178,2384.0,2383.9,0.3948]
[1728033740646,0.4195,2383.9,2383.8,0.7865]
[1728033741341,4.7178,2384.0,2383.8,0.7865]
[1728033741546,5.13729,2384.0,2383.8,0.7865]
[1728033742346,4.7178,2384.0,2383.4,1.09871746]
[1728033742544,4.7178,2383.7,2383.5,0.3984]
[1728033742744,5.13734,2383.7,2383.5,0.3984]
[1728033743546,3.62734,2383.7,2383.5,0.3984]
[1728033743748,3.2078,2383.7,2383.5,0.3984]
[1728033744140,3.2078,2383.7,2383.5,2.32796]
[1728033745239,3.2078,2383.7,2383.5,1.9084]
[1728033745635,3.2078,2383.7,2383.5,2.32796]
[1728033746439,1.92955,2383.6,2383.5,0.3984]
[1728033746639,1.51,2383.6,2383.5,0.3984]
[1728033747449,1.92955,2383.6,2383.5,0.3984]
[1728033747842,2.32635,2383.6,2383.5,0.3984]
[1728033748049,0.41957,2383.5,2383.4,1.49421746]
[1728033748245,1.92957,2383.5,2383.4,0.3955]
[1728033748446,1.51,2383.5,2383.4,0.3955]
[1728033750847,0.3968,2383.6,2383.4,0.3955]
[1728033751847,0.81635,2383.6,2383.4,0.3955]
[1728033752046,0.3968,2383.6,2383.4,0.3955]
[1728033752253,0.81636,2383.6,2383.4,0.3955]
[1728033753950,0.3968,2383.6,2383.4,0.3955]
[1728033754255,0.81636,2383.6,2383.4,0.3955]
[1728033754460,0.41957,2383.5,2383.4,0.3955]
[1728033755057,0.3968,2383.6,2383.4,0.3955]
[1728033755355,0.81636,2383.6,2383.4,0.3955]
[1728033755954,4.02416,2383.6,2383.4,0.3955]
[1728033758858,0.41957,2383.5,2383.4,0.3955]
[1728033759058,0.41958,2383.4,2383.3,0.8186]
[1728033759258,0.41958,2383.4,2383.3,0.4002]
[1728033760051,1.92957,2383.5,2383.3,0.4002]
[1728033760257,0.41958,2383.4,2383.3,0.4002]
[1728033761050,0.41958,2383.4,2383.1,0.3906]
[1728033761051,1.51,2383.5,2383.1,0.3906]
[1728033761258,0.41962,2383.2,2383.0,0.8054]
[1728033761657,0.81832,2383.2,2383.0,0.8054]
[1728033762452,0.3987,2383.2,2383.0,0.8054]
[1728033764158,0.81832,2383.2,2383.0,0.8054]
[1728033765160,0.3987,2383.2,2383.0,0.8054]
[1728033765563,0.81833,2383.2,2383.0,0.8054]
[1728033765859,0.81832,2383.2,2383.0,0.8054]
[1728033766060,0.3987,2383.2,2383.0,0.8054]
[1728033767459,0.81832,2383.2,2383.0,0.8054]
[1728033771853,0.3987,2383.2,2383.0,0.8054]
[1728033772467,3.6065,2383.2,2383.0,0.8054]
[1728033775974,0.3987,2383.2,2383.0,0.8054]
[1728033776668,0.81833,2383.2,2383.0,0.8054]
[1728033776868,0.41964,2383.1,2383.0,0.8054]
[1728033777170,0.81833,2383.2,2383.0,0.8054]
[1728033777765,0.81832,2383.2,2383.0,0.8054]
[1728033778267,0.3987,2383.2,2383.0,0.8054]
[1728033778571,0.81832,2383.2,2383.0,0.8054]
[1728033779660,0.3987,2383.2,2383.0,0.8054]
[1728033779971,0.81832,2383.2,2383.0,0.8054]
[1728033780167,4.02612,2383.2,2383.0,0.8054]
[1728033781369,3.6065,2383.2,2383.0,0.8054]
[1728033781874,3.6065,2383.2,2383.0,1.22505]